Workbook

Sheet Sheet1
A1: Forduló | B1: Vadászat | C1: Kiadott E parancsok száma | D1: E parancsra költött TVP | E1: Generált szörnyek száma | F1: Dupla szörny előfordulások száma | G1: Kumulált TVP/szörny | H1: Kumulált szörnygenerálás % | I1: Kumulált dupla szörnygenerálás % | K1: Testépítés | L1: Erő_TVP
A2: 1265 | B2: 34 | C2: 1 | D2: 40 | E2: 1 | F2: 0 | G2: =SUM($D$2:D2)/SUM($E$2:E2) -> 40 | H2: =SUM($E$2:E2)/SUM($C$2:C2) -> 1 | I2: =SUM($F$2:F2)/SUM($C$2:C2) -> 0 | K2: 536 | L2: =ROUNDDOWN(D2*(1+0.3+IF(K2<620,K2/100,6.2)),0) -> 266 | N2: Összes elköltött TVP | O2: =SUM(D2:D152) -> 16253
A3: 1266 | B3: 35 | C3: 1 | D3: 40 | E3: 0 | F3: 0 | G3: =SUM($D$2:D3)/SUM($E$2:E3) -> 80 | H3: =SUM($E$2:E3)/SUM($C$2:C3) -> 0.5 | I3: =SUM($F$2:F3)/SUM($C$2:C3) -> 0 | K3: 538 | L3: =ROUNDDOWN(D3*(1+0.3+IF(K3<620,K3/100,6.2)),0) -> 267 | N3: Összes generált szörny | O3: =SUM(E2:E152) -> 160 | P3: =O3/O5 -> 0.3921568627
A4: 1267 | B4: 36 | C4: 1 | D4: 40 | E4: 0 | F4: 0 | G4: =SUM($D$2:D4)/SUM($E$2:E4) -> 120 | H4: =SUM($E$2:E4)/SUM($C$2:C4) -> 0.3333333333 | I4: =SUM($F$2:F4)/SUM($C$2:C4) -> 0 | K4: 541 | L4: 268 | N4: Dupla szörnygenerálások száma | O4: =SUM(F2:F152) -> 22 | P4: =O4/O5 -> 0.05392156863
A5: 1268 | B5: 37 | C5: 1 | D5: 40 | E5: 1 | F5: 0 | G5: =SUM($D$2:D5)/SUM($E$2:E5) -> 80 | H5: =SUM($E$2:E5)/SUM($C$2:C5) -> 0.5 | I5: =SUM($F$2:F5)/SUM($C$2:C5) -> 0 | K5: 546 | L5: 270 | N5: Összes kiadott E parancs | O5: =SUM(C2:C152) -> 408
A6: 1269 | B6: 38 | C6: 1 | D6: 40 | E6: 0 | F6: 0 | G6: =SUM($D$2:D6)/SUM($E$2:E6) -> 100 | H6: =SUM($E$2:E6)/SUM($C$2:C6) -> 0.4 | I6: =SUM($F$2:F6)/SUM($C$2:C6) -> 0 | K6: 548 | L6: 271 | N6: Összes erőből hiányzó TVP | O6: =SUM(L2:L152) -> 121401
A7: 1270 | B7: 39 | C7: 1 | D7: 40 | E7: 2 | F7: 1 | G7: =SUM($D$2:D7)/SUM($E$2:E7) -> 60 | H7: =SUM($E$2:E7)/SUM($C$2:C7) -> 0.6666666667 | I7: =SUM($F$2:F7)/SUM($C$2:C7) -> 0.1666666667 | K7: 549 | L7: 271
A8: 1271 | B8: 39 | C8: 0 | D8: 0 | E8: 0 | F8: 0 | G8: =SUM($D$2:D8)/SUM($E$2:E8) -> 60 | H8: =SUM($E$2:E8)/SUM($C$2:C8) -> 0.6666666667 | I8: =SUM($F$2:F8)/SUM($C$2:C8) -> 0.1666666667 | K8: 551 | L8: 0
A9: 1272 | B9: 40 | C9: 1 | D9: 40 | E9: 1 | F9: 0 | G9: =SUM($D$2:D9)/SUM($E$2:E9) -> 56 | H9: =SUM($E$2:E9)/SUM($C$2:C9) -> 0.7142857143 | I9: =SUM($F$2:F9)/SUM($C$2:C9) -> 0.1428571429 | K9: 552 | L9: 272
A10: 1273 | B10: 41 | C10: 1 | D10: 40 | E10: 0 | F10: 0 | G10: =SUM($D$2:D10)/SUM($E$2:E10) -> 64 | H10: =SUM($E$2:E10)/SUM($C$2:C10) -> 0.625 | I10: =SUM($F$2:F10)/SUM($C$2:C10) -> 0.125 | K10: 555 | L10: 274
A11: 1274 | B11: 42 | C11: 1 | D11: 40 | E11: 0 | F11: 0 | G11: =SUM($D$2:D11)/SUM($E$2:E11) -> 72 | H11: =SUM($E$2:E11)/SUM($C$2:C11) -> 0.5555555556 | I11: =SUM($F$2:F11)/SUM($C$2:C11) -> 0.1111111111 | K11: 558 | L11: 275
A12: 1275 | B12: 43 | C12: 1 | D12: 40 | E12: 1 | F12: 0 | G12: =SUM($D$2:D12)/SUM($E$2:E12) -> 66.66666667 | H12: =SUM($E$2:E12)/SUM($C$2:C12) -> 0.6 | I12: =SUM($F$2:F12)/SUM($C$2:C12) -> 0.1 | K12: 560 | L12: 276
A13: 1276 | B13: 44 | C13: 1 | D13: 40 | E13: 0 | F13: 0 | G13: =SUM($D$2:D13)/SUM($E$2:E13) -> 73.33333333 | H13: =SUM($E$2:E13)/SUM($C$2:C13) -> 0.5454545455 | I13: =SUM($F$2:F13)/SUM($C$2:C13) -> 0.09090909091 | K13: 561 | L13: 276
A14: 1277 | B14: 45 | C14: 1 | D14: 40 | E14: 0 | F14: 0 | G14: =SUM($D$2:D14)/SUM($E$2:E14) -> 80 | H14: =SUM($E$2:E14)/SUM($C$2:C14) -> 0.5 | I14: =SUM($F$2:F14)/SUM($C$2:C14) -> 0.08333333333 | K14: 563 | L14: 277
A15: 1278 | B15: 45 | C15: 0 | D15: 0 | E15: 0 | F15: 0 | G15: =SUM($D$2:D15)/SUM($E$2:E15) -> 80 | H15: =SUM($E$2:E15)/SUM($C$2:C15) -> 0.5 | I15: =SUM($F$2:F15)/SUM($C$2:C15) -> 0.08333333333 | K15: 565 | L15: 0
A16: 1279 | B16: 45 | C16: 0 | D16: 0 | E16: 0 | F16: 0 | G16: =SUM($D$2:D16)/SUM($E$2:E16) -> 80 | H16: =SUM($E$2:E16)/SUM($C$2:C16) -> 0.5 | I16: =SUM($F$2:F16)/SUM($C$2:C16) -> 0.08333333333 | K16: 571 | L16: 0
A17: 1280 | B17: 46 | C17: 1 | D17: 40 | E17: 0 | F17: 0 | G17: =SUM($D$2:D17)/SUM($E$2:E17) -> 86.66666667 | H17: =SUM($E$2:E17)/SUM($C$2:C17) -> 0.4615384615 | I17: =SUM($F$2:F17)/SUM($C$2:C17) -> 0.07692307692 | K17: 572 | L17: 280
A18: 1281 | B18: 47 | C18: 1 | D18: 40 | E18: 0 | F18: 0 | G18: =SUM($D$2:D18)/SUM($E$2:E18) -> 93.33333333 | H18: =SUM($E$2:E18)/SUM($C$2:C18) -> 0.4285714286 | I18: =SUM($F$2:F18)/SUM($C$2:C18) -> 0.07142857143 | K18: 574 | L18: 281
A19: 1282 | B19: 48 | C19: 1 | D19: 40 | E19: 0 | F19: 0 | G19: =SUM($D$2:D19)/SUM($E$2:E19) -> 100 | H19: =SUM($E$2:E19)/SUM($C$2:C19) -> 0.4 | I19: =SUM($F$2:F19)/SUM($C$2:C19) -> 0.06666666667 | K19: 576 | L19: 282
A20: 1283 | B20: 49 | C20: 1 | D20: 40 | E20: 1 | F20: 0 | G20: =SUM($D$2:D20)/SUM($E$2:E20) -> 91.42857143 | H20: =SUM($E$2:E20)/SUM($C$2:C20) -> 0.4375 | I20: =SUM($F$2:F20)/SUM($C$2:C20) -> 0.0625 | K20: 579 | L20: 283
A21: 1284 | B21: 50 | C21: 1 | D21: 40 | E21: 0 | F21: 0 | G21: =SUM($D$2:D21)/SUM($E$2:E21) -> 97.14285714 | H21: =SUM($E$2:E21)/SUM($C$2:C21) -> 0.4117647059 | I21: =SUM($F$2:F21)/SUM($C$2:C21) -> 0.05882352941 | K21: 580 | L21: 284
A22: 1285 | B22: 51 | C22: 1 | D22: 40 | E22: 1 | F22: 0 | G22: =SUM($D$2:D22)/SUM($E$2:E22) -> 90 | H22: =SUM($E$2:E22)/SUM($C$2:C22) -> 0.4444444444 | I22: =SUM($F$2:F22)/SUM($C$2:C22) -> 0.05555555556 | K22: 582 | L22: 284
A23: 1286 | B23: 52 | C23: 1 | D23: 40 | E23: 0 | F23: 0 | G23: =SUM($D$2:D23)/SUM($E$2:E23) -> 95 | H23: =SUM($E$2:E23)/SUM($C$2:C23) -> 0.4210526316 | I23: =SUM($F$2:F23)/SUM($C$2:C23) -> 0.05263157895 | K23: 584 | L23: 285
A24: 1287 | B24: 53 | C24: 1 | D24: 40 | E24: 0 | F24: 0 | G24: =SUM($D$2:D24)/SUM($E$2:E24) -> 100 | H24: =SUM($E$2:E24)/SUM($C$2:C24) -> 0.4 | I24: =SUM($F$2:F24)/SUM($C$2:C24) -> 0.05 | K24: 593 | L24: 289
A25: 1288 | B25: 54 | C25: 1 | D25: 40 | E25: 0 | F25: 0 | G25: =SUM($D$2:D25)/SUM($E$2:E25) -> 105 | H25: =SUM($E$2:E25)/SUM($C$2:C25) -> 0.380952381 | I25: =SUM($F$2:F25)/SUM($C$2:C25) -> 0.04761904762 | K25: 595 | L25: 290
A26: 1289 | B26: 55 | C26: 1 | D26: 40 | E26: 0 | F26: 0 | G26: =SUM($D$2:D26)/SUM($E$2:E26) -> 110 | H26: =SUM($E$2:E26)/SUM($C$2:C26) -> 0.3636363636 | I26: =SUM($F$2:F26)/SUM($C$2:C26) -> 0.04545454545 | K26: 597 | L26: 290
A27: 1290 | B27: 55 | C27: 0 | D27: 0 | E27: 0 | F27: 0 | G27: =SUM($D$2:D27)/SUM($E$2:E27) -> 110 | H27: =SUM($E$2:E27)/SUM($C$2:C27) -> 0.3636363636 | I27: =SUM($F$2:F27)/SUM($C$2:C27) -> 0.04545454545 | K27: 601 | L27: 0
A28: 1291 | B28: 56 | C28: 1 | D28: 40 | E28: 1 | F28: 0 | G28: =SUM($D$2:D28)/SUM($E$2:E28) -> 102.2222222 | H28: =SUM($E$2:E28)/SUM($C$2:C28) -> 0.3913043478 | I28: =SUM($F$2:F28)/SUM($C$2:C28) -> 0.04347826087 | K28: 610 | L28: 296
A29: 1292 | B29: 57 | C29: 1 | D29: 40 | E29: 0 | F29: 0 | G29: =SUM($D$2:D29)/SUM($E$2:E29) -> 106.6666667 | H29: =SUM($E$2:E29)/SUM($C$2:C29) -> 0.375 | I29: =SUM($F$2:F29)/SUM($C$2:C29) -> 0.04166666667 | K29: 615 | L29: 298
A30: 1293 | B30: 58 | C30: 1 | D30: 40 | E30: 1 | F30: 0 | G30: =SUM($D$2:D30)/SUM($E$2:E30) -> 100 | H30: =SUM($E$2:E30)/SUM($C$2:C30) -> 0.4 | I30: =SUM($F$2:F30)/SUM($C$2:C30) -> 0.04 | K30: 619 | L30: 299
A31: 1294 | B31: 58 | C31: 0 | D31: 0 | E31: 0 | F31: 0 | G31: =SUM($D$2:D31)/SUM($E$2:E31) -> 100 | H31: =SUM($E$2:E31)/SUM($C$2:C31) -> 0.4 | I31: =SUM($F$2:F31)/SUM($C$2:C31) -> 0.04 | K31: 625 | L31: 0
A32: 1295 | B32: 59 | C32: 1 | D32: 40 | E32: 1 | F32: 0 | G32: =SUM($D$2:D32)/SUM($E$2:E32) -> 94.54545455 | H32: =SUM($E$2:E32)/SUM($C$2:C32) -> 0.4230769231 | I32: =SUM($F$2:F32)/SUM($C$2:C32) -> 0.03846153846 | K32: 630 | L32: 300
A33: 1296 | B33: 59 | C33: 0 | D33: 0 | E33: 0 | F33: 0 | G33: =SUM($D$2:D33)/SUM($E$2:E33) -> 94.54545455 | H33: =SUM($E$2:E33)/SUM($C$2:C33) -> 0.4230769231 | I33: =SUM($F$2:F33)/SUM($C$2:C33) -> 0.03846153846 | K33: 634 | L33: 0
A34: 1297 | B34: 59 | C34: 1 | D34: 40 | E34: 0 | F34: 0 | G34: =SUM($D$2:D34)/SUM($E$2:E34) -> 98.18181818 | H34: =SUM($E$2:E34)/SUM($C$2:C34) -> 0.4074074074 | I34: =SUM($F$2:F34)/SUM($C$2:C34) -> 0.03703703704 | K34: 635 | L34: 300
A35: 1298 | B35: 63 | C35: 3 | D35: 120 | E35: 1 | F35: 0 | G35: =SUM($D$2:D35)/SUM($E$2:E35) -> 100 | H35: =SUM($E$2:E35)/SUM($C$2:C35) -> 0.4 | I35: =SUM($F$2:F35)/SUM($C$2:C35) -> 0.03333333333 | K35: 636 | L35: 900
A36: 1299 | B36: 66 | C36: 3 | D36: 120 | E36: 2 | F36: 0 | G36: =SUM($D$2:D36)/SUM($E$2:E36) -> 94.28571429 | H36: =SUM($E$2:E36)/SUM($C$2:C36) -> 0.4242424242 | I36: =SUM($F$2:F36)/SUM($C$2:C36) -> 0.0303030303 | K36: 638 | L36: 900
A37: 1300 | B37: 68 | C37: 3 | D37: 120 | E37: 1 | F37: 0 | G37: =SUM($D$2:D37)/SUM($E$2:E37) -> 96 | H37: =SUM($E$2:E37)/SUM($C$2:C37) -> 0.4166666667 | I37: =SUM($F$2:F37)/SUM($C$2:C37) -> 0.02777777778 | K37: 639 | L37: 900
A38: 1301 | B38: 69 | C38: 3 | D38: 120 | E38: 3 | F38: 1 | G38: =SUM($D$2:D38)/SUM($E$2:E38) -> 86.66666667 | H38: =SUM($E$2:E38)/SUM($C$2:C38) -> 0.4615384615 | I38: =SUM($F$2:F38)/SUM($C$2:C38) -> 0.05128205128 | K38: 640 | L38: 900
A39: 1302 | B39: 71 | C39: 3 | D39: 120 | E39: 0 | F39: 0 | G39: =SUM($D$2:D39)/SUM($E$2:E39) -> 93.33333333 | H39: =SUM($E$2:E39)/SUM($C$2:C39) -> 0.4285714286 | I39: =SUM($F$2:F39)/SUM($C$2:C39) -> 0.04761904762 | K39: 641 | L39: 900
A40: 1303 | B40: 72 | C40: 3 | D40: 120 | E40: 1 | F40: 0 | G40: =SUM($D$2:D40)/SUM($E$2:E40) -> 94.73684211 | H40: =SUM($E$2:E40)/SUM($C$2:C40) -> 0.4222222222 | I40: =SUM($F$2:F40)/SUM($C$2:C40) -> 0.04444444444 | K40: 643 | L40: 900
A41: 1304 | B41: 74 | C41: 3 | D41: 120 | E41: 2 | F41: 1 | G41: =SUM($D$2:D41)/SUM($E$2:E41) -> 91.42857143 | H41: =SUM($E$2:E41)/SUM($C$2:C41) -> 0.4375 | I41: =SUM($F$2:F41)/SUM($C$2:C41) -> 0.0625 | K41: 644 | L41: 900
A42: 1305 | B42: 75 | C42: 3 | D42: 120 | E42: 0 | F42: 0 | G42: =SUM($D$2:D42)/SUM($E$2:E42) -> 97.14285714 | H42: =SUM($E$2:E42)/SUM($C$2:C42) -> 0.4117647059 | I42: =SUM($F$2:F42)/SUM($C$2:C42) -> 0.05882352941 | K42: 646 | L42: 900
A43: 1306 | B43: 78 | C43: 3 | D43: 120 | E43: 0 | F43: 0 | G43: =SUM($D$2:D43)/SUM($E$2:E43) -> 102.8571429 | H43: =SUM($E$2:E43)/SUM($C$2:C43) -> 0.3888888889 | I43: =SUM($F$2:F43)/SUM($C$2:C43) -> 0.05555555556 | K43: 650 | L43: 900
A44: 1307 | B44: 82 | C44: 4 | D44: 160 | E44: 2 | F44: 0 | G44: =SUM($D$2:D44)/SUM($E$2:E44) -> 100.8695652 | H44: =SUM($E$2:E44)/SUM($C$2:C44) -> 0.3965517241 | I44: =SUM($F$2:F44)/SUM($C$2:C44) -> 0.05172413793 | K44: 657 | L44: 1200
A45: 1308 | B45: 85 | C45: 3 | D45: 120 | E45: 0 | F45: 0 | G45: =SUM($D$2:D45)/SUM($E$2:E45) -> 106.0869565 | H45: =SUM($E$2:E45)/SUM($C$2:C45) -> 0.3770491803 | I45: =SUM($F$2:F45)/SUM($C$2:C45) -> 0.04918032787 | K45: 663 | L45: 900
A46: 1309 | B46: 89 | C46: 4 | D46: 160 | E46: 4 | F46: 1 | G46: =SUM($D$2:D46)/SUM($E$2:E46) -> 96.2962963 | H46: =SUM($E$2:E46)/SUM($C$2:C46) -> 0.4153846154 | I46: =SUM($F$2:F46)/SUM($C$2:C46) -> 0.06153846154 | K46: 666 | L46: 1200
A47: 1310 | B47: 93 | C47: 4 | D47: 160 | E47: 2 | F47: 0 | G47: =SUM($D$2:D47)/SUM($E$2:E47) -> 95.17241379 | H47: =SUM($E$2:E47)/SUM($C$2:C47) -> 0.4202898551 | I47: =SUM($F$2:F47)/SUM($C$2:C47) -> 0.05797101449 | K47: 668 | L47: 1200
A48: 1311 | B48: 95 | C48: 4 | D48: 160 | E48: 1 | F48: 0 | G48: =SUM($D$2:D48)/SUM($E$2:E48) -> 97.33333333 | H48: =SUM($E$2:E48)/SUM($C$2:C48) -> 0.4109589041 | I48: =SUM($F$2:F48)/SUM($C$2:C48) -> 0.05479452055 | K48: 669 | L48: 1200
A49: 1312 | B49: 99 | C49: 4 | D49: 160 | E49: 1 | F49: 0 | G49: =SUM($D$2:D49)/SUM($E$2:E49) -> 99.35483871 | H49: =SUM($E$2:E49)/SUM($C$2:C49) -> 0.4025974026 | I49: =SUM($F$2:F49)/SUM($C$2:C49) -> 0.05194805195 | K49: 671 | L49: 1200
A50: 1313 | B50: 103 | C50: 4 | D50: 160 | E50: 4 | F50: 1 | G50: =SUM($D$2:D50)/SUM($E$2:E50) -> 92.57142857 | H50: =SUM($E$2:E50)/SUM($C$2:C50) -> 0.4320987654 | I50: =SUM($F$2:F50)/SUM($C$2:C50) -> 0.06172839506 | K50: 673 | L50: 1200
A51: 1314 | B51: 106 | C51: 3 | D51: 120 | E51: 2 | F51: 0 | G51: =SUM($D$2:D51)/SUM($E$2:E51) -> 90.81081081 | H51: =SUM($E$2:E51)/SUM($C$2:C51) -> 0.4404761905 | I51: =SUM($F$2:F51)/SUM($C$2:C51) -> 0.05952380952 | K51: 676 | L51: 900
A52: 1315 | B52: 110 | C52: 4 | D52: 160 | E52: 0 | F52: 0 | G52: =SUM($D$2:D52)/SUM($E$2:E52) -> 95.13513514 | H52: =SUM($E$2:E52)/SUM($C$2:C52) -> 0.4204545455 | I52: =SUM($F$2:F52)/SUM($C$2:C52) -> 0.05681818182 | K52: 677 | L52: 1200
A53: 1316 | B53: 114 | C53: 4 | D53: 160 | E53: 1 | F53: 0 | G53: =SUM($D$2:D53)/SUM($E$2:E53) -> 96.84210526 | H53: =SUM($E$2:E53)/SUM($C$2:C53) -> 0.4130434783 | I53: =SUM($F$2:F53)/SUM($C$2:C53) -> 0.05434782609 | K53: 681 | L53: 1200
A54: 1317 | B54: 118 | C54: 4 | D54: 160 | E54: 0 | F54: 0 | G54: =SUM($D$2:D54)/SUM($E$2:E54) -> 101.0526316 | H54: =SUM($E$2:E54)/SUM($C$2:C54) -> 0.3958333333 | I54: =SUM($F$2:F54)/SUM($C$2:C54) -> 0.05208333333 | K54: 684 | L54: 1200
A55: 1318 | B55: 122 | C55: 4 | D55: 160 | E55: 2 | F55: 0 | G55: =SUM($D$2:D55)/SUM($E$2:E55) -> 100 | H55: =SUM($E$2:E55)/SUM($C$2:C55) -> 0.4 | I55: =SUM($F$2:F55)/SUM($C$2:C55) -> 0.05 | K55: 687 | L55: 1200
A56: 1319 | B56: 124 | C56: 3 | D56: 120 | E56: 0 | F56: 0 | G56: =SUM($D$2:D56)/SUM($E$2:E56) -> 103 | H56: =SUM($E$2:E56)/SUM($C$2:C56) -> 0.3883495146 | I56: =SUM($F$2:F56)/SUM($C$2:C56) -> 0.04854368932 | K56: 689 | L56: 900
A57: 1320 | B57: 128 | C57: 4 | D57: 160 | E57: 3 | F57: 1 | G57: =SUM($D$2:D57)/SUM($E$2:E57) -> 99.53488372 | H57: =SUM($E$2:E57)/SUM($C$2:C57) -> 0.4018691589 | I57: =SUM($F$2:F57)/SUM($C$2:C57) -> 0.05607476636 | K57: 690 | L57: 1200
A58: 1321 | B58: 132 | C58: 4 | D58: 160 | E58: 1 | F58: 0 | G58: =SUM($D$2:D58)/SUM($E$2:E58) -> 100.9090909 | H58: =SUM($E$2:E58)/SUM($C$2:C58) -> 0.3963963964 | I58: =SUM($F$2:F58)/SUM($C$2:C58) -> 0.05405405405 | K58: 690 | L58: 1200
A59: 1322 | B59: 134 | C59: 4 | D59: 160 | E59: 0 | F59: 0 | G59: =SUM($D$2:D59)/SUM($E$2:E59) -> 104.5454545 | H59: =SUM($E$2:E59)/SUM($C$2:C59) -> 0.3826086957 | I59: =SUM($F$2:F59)/SUM($C$2:C59) -> 0.05217391304 | K59: 690 | L59: 1200
A60: 1323 | B60: 138 | C60: 4 | D60: 160 | E60: 2 | F60: 0 | G60: =SUM($D$2:D60)/SUM($E$2:E60) -> 103.4782609 | H60: =SUM($E$2:E60)/SUM($C$2:C60) -> 0.3865546218 | I60: =SUM($F$2:F60)/SUM($C$2:C60) -> 0.05042016807 | K60: 690 | L60: 1200
A61: 1324 | B61: 142 | C61: 4 | D61: 160 | E61: 4 | F61: 1 | G61: =SUM($D$2:D61)/SUM($E$2:E61) -> 98.4 | H61: =SUM($E$2:E61)/SUM($C$2:C61) -> 0.406504065 | I61: =SUM($F$2:F61)/SUM($C$2:C61) -> 0.05691056911 | K61: 690 | L61: 1200
A62: 1325 | B62: 144 | C62: 4 | D62: 160 | E62: 1 | F62: 0 | G62: =SUM($D$2:D62)/SUM($E$2:E62) -> 99.60784314 | H62: =SUM($E$2:E62)/SUM($C$2:C62) -> 0.4015748031 | I62: =SUM($F$2:F62)/SUM($C$2:C62) -> 0.05511811024 | K62: 690 | L62: 1200
A63: 1326 | B63: 146 | C63: 4 | D63: 160 | E63: 0 | F63: 0 | G63: =SUM($D$2:D63)/SUM($E$2:E63) -> 102.745098 | H63: =SUM($E$2:E63)/SUM($C$2:C63) -> 0.3893129771 | I63: =SUM($F$2:F63)/SUM($C$2:C63) -> 0.0534351145 | K63: 690 | L63: 1200
A64: 1327 | B64: 149 | C64: 4 | D64: 160 | E64: 2 | F64: 1 | G64: =SUM($D$2:D64)/SUM($E$2:E64) -> 101.8867925 | H64: =SUM($E$2:E64)/SUM($C$2:C64) -> 0.3925925926 | I64: =SUM($F$2:F64)/SUM($C$2:C64) -> 0.05925925926 | K64: 690 | L64: 1200
A65: 1328 | B65: 151 | C65: 4 | D65: 160 | E65: 2 | F65: 0 | G65: =SUM($D$2:D65)/SUM($E$2:E65) -> 101.0909091 | H65: =SUM($E$2:E65)/SUM($C$2:C65) -> 0.3956834532 | I65: =SUM($F$2:F65)/SUM($C$2:C65) -> 0.05755395683 | K65: 690 | L65: 1200
A66: 1329 | B66: 153 | C66: 4 | D66: 160 | E66: 0 | F66: 0 | G66: =SUM($D$2:D66)/SUM($E$2:E66) -> 104 | H66: =SUM($E$2:E66)/SUM($C$2:C66) -> 0.3846153846 | I66: =SUM($F$2:F66)/SUM($C$2:C66) -> 0.05594405594 | K66: 690 | L66: 1200
A67: 1330 | B67: 155 | C67: 4 | D67: 160 | E67: 1 | F67: 0 | G67: =SUM($D$2:D67)/SUM($E$2:E67) -> 105 | H67: =SUM($E$2:E67)/SUM($C$2:C67) -> 0.380952381 | I67: =SUM($F$2:F67)/SUM($C$2:C67) -> 0.05442176871 | K67: 690 | L67: =ROUNDDOWN(D67*(1+0.3+IF(K67<620,K67/100,6.2)),0) -> 1200
A68: 1331 | B68: 157 | C68: 4 | D68: 160 | E68: 3 | F68: 0 | G68: =SUM($D$2:D68)/SUM($E$2:E68) -> 102.3728814 | H68: =SUM($E$2:E68)/SUM($C$2:C68) -> 0.3907284768 | I68: =SUM($F$2:F68)/SUM($C$2:C68) -> 0.05298013245 | K68: 690 | L68: 1200
A69: 1332 | B69: 159 | C69: 4 | D69: 160 | E69: 1 | F69: 0 | G69: =SUM($D$2:D69)/SUM($E$2:E69) -> 103.3333333 | H69: =SUM($E$2:E69)/SUM($C$2:C69) -> 0.3870967742 | I69: =SUM($F$2:F69)/SUM($C$2:C69) -> 0.05161290323 | K69: 690 | L69: 1200
A70: 1333 | B70: 161 | C70: 4 | D70: 160 | E70: 1 | F70: 0 | G70: =SUM($D$2:D70)/SUM($E$2:E70) -> 104.2622951 | H70: =SUM($E$2:E70)/SUM($C$2:C70) -> 0.3836477987 | I70: =SUM($F$2:F70)/SUM($C$2:C70) -> 0.05031446541 | K70: 690 | L70: 1200
A71: 1334 | B71: 163 | C71: 4 | D71: 160 | E71: 0 | F71: 0 | G71: =SUM($D$2:D71)/SUM($E$2:E71) -> 106.8852459 | H71: =SUM($E$2:E71)/SUM($C$2:C71) -> 0.3742331288 | I71: =SUM($F$2:F71)/SUM($C$2:C71) -> 0.0490797546 | K71: 690 | L71: 1200
A72: 1335 | B72: 164 | C72: 2 | D72: 80 | E72: 1 | F72: 0 | G72: =SUM($D$2:D72)/SUM($E$2:E72) -> 106.4516129 | H72: =SUM($E$2:E72)/SUM($C$2:C72) -> 0.3757575758 | I72: =SUM($F$2:F72)/SUM($C$2:C72) -> 0.04848484848 | K72: 690 | L72: 600
A73: 1336 | B73: 165 | C73: 1 | D73: 40 | E73: 1 | F73: 0 | G73: =SUM($D$2:D73)/SUM($E$2:E73) -> 105.3968254 | H73: =SUM($E$2:E73)/SUM($C$2:C73) -> 0.3795180723 | I73: =SUM($F$2:F73)/SUM($C$2:C73) -> 0.04819277108 | K73: 690 | L73: 300
A74: 1337 | B74: 167 | C74: 2 | D74: 80 | E74: 0 | F74: 0 | G74: =SUM($D$2:D74)/SUM($E$2:E74) -> 106.6666667 | H74: =SUM($E$2:E74)/SUM($C$2:C74) -> 0.375 | I74: =SUM($F$2:F74)/SUM($C$2:C74) -> 0.04761904762 | K74: 690 | L74: 600
A75: 1338 | B75: 170 | C75: 4 | D75: 160 | E75: 1 | F75: 0 | G75: =SUM($D$2:D75)/SUM($E$2:E75) -> 107.5 | H75: =SUM($E$2:E75)/SUM($C$2:C75) -> 0.3720930233 | I75: =SUM($F$2:F75)/SUM($C$2:C75) -> 0.04651162791 | K75: 690 | L75: 1200
A76: 1339 | B76: 172 | C76: 3 | D76: 120 | E76: 0 | F76: 0 | G76: =SUM($D$2:D76)/SUM($E$2:E76) -> 109.375 | H76: =SUM($E$2:E76)/SUM($C$2:C76) -> 0.3657142857 | I76: =SUM($F$2:F76)/SUM($C$2:C76) -> 0.04571428571 | K76: 690 | L76: 900
A77: 1340 | B77: 175 | C77: 3 | D77: 120 | E77: 1 | F77: 0 | G77: =SUM($D$2:D77)/SUM($E$2:E77) -> 109.5384615 | H77: =SUM($E$2:E77)/SUM($C$2:C77) -> 0.3651685393 | I77: =SUM($F$2:F77)/SUM($C$2:C77) -> 0.04494382022 | K77: 690 | L77: 900
A78: 1341 | B78: 179 | C78: 4 | D78: 160 | E78: 1 | F78: 0 | G78: =SUM($D$2:D78)/SUM($E$2:E78) -> 110.3030303 | H78: =SUM($E$2:E78)/SUM($C$2:C78) -> 0.3626373626 | I78: =SUM($F$2:F78)/SUM($C$2:C78) -> 0.04395604396 | K78: 690 | L78: 1200
A79: 1342 | B79: 183 | C79: 4 | D79: 160 | E79: 2 | F79: 0 | G79: =SUM($D$2:D79)/SUM($E$2:E79) -> 109.4117647 | H79: =SUM($E$2:E79)/SUM($C$2:C79) -> 0.3655913978 | I79: =SUM($F$2:F79)/SUM($C$2:C79) -> 0.04301075269 | K79: 690 | L79: 1200
A80: 1343 | B80: 187 | C80: 4 | D80: 160 | E80: 2 | F80: 1 | G80: =SUM($D$2:D80)/SUM($E$2:E80) -> 108.5714286 | H80: =SUM($E$2:E80)/SUM($C$2:C80) -> 0.3684210526 | I80: =SUM($F$2:F80)/SUM($C$2:C80) -> 0.04736842105 | K80: 690 | L80: 1200
A81: 1344 | B81: 191 | C81: 4 | D81: 160 | E81: 0 | F81: 0 | G81: =SUM($D$2:D81)/SUM($E$2:E81) -> 110.8571429 | H81: =SUM($E$2:E81)/SUM($C$2:C81) -> 0.3608247423 | I81: =SUM($F$2:F81)/SUM($C$2:C81) -> 0.04639175258 | K81: 690 | L81: 1200
A82: 1345 | B82: 195 | C82: 4 | D82: 160 | E82: 1 | F82: 0 | G82: =SUM($D$2:D82)/SUM($E$2:E82) -> 111.5492958 | H82: =SUM($E$2:E82)/SUM($C$2:C82) -> 0.3585858586 | I82: =SUM($F$2:F82)/SUM($C$2:C82) -> 0.04545454545 | K82: 690 | L82: 1200
A83: 1346 | B83: 199 | C83: 4 | D83: 160 | E83: 2 | F83: 0 | G83: =SUM($D$2:D83)/SUM($E$2:E83) -> 110.6849315 | H83: =SUM($E$2:E83)/SUM($C$2:C83) -> 0.3613861386 | I83: =SUM($F$2:F83)/SUM($C$2:C83) -> 0.04455445545 | K83: 690 | L83: 1200
A84: 1347 | B84: 204 | C84: 5 | D84: 200 | E84: 3 | F84: 1 | G84: =SUM($D$2:D84)/SUM($E$2:E84) -> 108.9473684 | H84: =SUM($E$2:E84)/SUM($C$2:C84) -> 0.3671497585 | I84: =SUM($F$2:F84)/SUM($C$2:C84) -> 0.04830917874 | K84: 690 | L84: 1500
A85: 1348 | B85: 208 | C85: 4 | D85: 160 | E85: 1 | F85: 0 | G85: =SUM($D$2:D85)/SUM($E$2:E85) -> 109.6103896 | H85: =SUM($E$2:E85)/SUM($C$2:C85) -> 0.36492891 | I85: =SUM($F$2:F85)/SUM($C$2:C85) -> 0.04739336493 | K85: 690 | L85: 1200
A86: 1349 | B86: 212 | C86: 4 | D86: 160 | E86: 0 | F86: 0 | G86: =SUM($D$2:D86)/SUM($E$2:E86) -> 111.6883117 | H86: =SUM($E$2:E86)/SUM($C$2:C86) -> 0.3581395349 | I86: =SUM($F$2:F86)/SUM($C$2:C86) -> 0.04651162791 | K86: 690 | L86: 1200
A87: 1350 | B87: 216 | C87: 4 | D87: 160 | E87: 3 | F87: 1 | G87: =SUM($D$2:D87)/SUM($E$2:E87) -> 109.5 | H87: =SUM($E$2:E87)/SUM($C$2:C87) -> 0.3652968037 | I87: =SUM($F$2:F87)/SUM($C$2:C87) -> 0.0502283105 | K87: 690 | L87: 1200
A88: 1351 | B88: 220 | C88: 4 | D88: 160 | E88: 1 | F88: 0 | G88: =SUM($D$2:D88)/SUM($E$2:E88) -> 110.1234568 | H88: =SUM($E$2:E88)/SUM($C$2:C88) -> 0.3632286996 | I88: =SUM($F$2:F88)/SUM($C$2:C88) -> 0.04932735426 | K88: 690 | L88: 1200
A89: 1352 | B89: 224 | C89: 4 | D89: 160 | E89: 0 | F89: 0 | G89: =SUM($D$2:D89)/SUM($E$2:E89) -> 112.0987654 | H89: =SUM($E$2:E89)/SUM($C$2:C89) -> 0.3568281938 | I89: =SUM($F$2:F89)/SUM($C$2:C89) -> 0.04845814978 | K89: 690 | L89: 1200
A90: 1353 | B90: 227 | C90: 3 | D90: 120 | E90: 0 | F90: 0 | G90: =SUM($D$2:D90)/SUM($E$2:E90) -> 113.5802469 | H90: =SUM($E$2:E90)/SUM($C$2:C90) -> 0.352173913 | I90: =SUM($F$2:F90)/SUM($C$2:C90) -> 0.04782608696 | K90: 690 | L90: 900
A91: 1354 | B91: 231 | C91: 4 | D91: 160 | E91: 2 | F91: 0 | G91: =SUM($D$2:D91)/SUM($E$2:E91) -> 112.7710843 | H91: =SUM($E$2:E91)/SUM($C$2:C91) -> 0.3547008547 | I91: =SUM($F$2:F91)/SUM($C$2:C91) -> 0.04700854701 | K91: 690 | L91: 1200
A92: 1355 | B92: 235 | C92: 4 | D92: 160 | E92: 3 | F92: 1 | G92: =SUM($D$2:D92)/SUM($E$2:E92) -> 110.6976744 | H92: =SUM($E$2:E92)/SUM($C$2:C92) -> 0.3613445378 | I92: =SUM($F$2:F92)/SUM($C$2:C92) -> 0.05042016807 | K92: 690 | L92: 1200
A93: 1356 | B93: 239 | C93: 4 | D93: 160 | E93: 3 | F93: 0 | G93: =SUM($D$2:D93)/SUM($E$2:E93) -> 108.7640449 | H93: =SUM($E$2:E93)/SUM($C$2:C93) -> 0.367768595 | I93: =SUM($F$2:F93)/SUM($C$2:C93) -> 0.04958677686 | K93: 690 | L93: 1200
A94: 1357 | B94: 243 | C94: 4 | D94: 160 | E94: 2 | F94: 1 | G94: =SUM($D$2:D94)/SUM($E$2:E94) -> 108.1318681 | H94: =SUM($E$2:E94)/SUM($C$2:C94) -> 0.3699186992 | I94: =SUM($F$2:F94)/SUM($C$2:C94) -> 0.05284552846 | K94: 690 | L94: 1200
A95: 1358 | B95: 247 | C95: 4 | D95: 160 | E95: 1 | F95: 0 | G95: =SUM($D$2:D95)/SUM($E$2:E95) -> 108.6956522 | H95: =SUM($E$2:E95)/SUM($C$2:C95) -> 0.368 | I95: =SUM($F$2:F95)/SUM($C$2:C95) -> 0.052 | K95: 690 | L95: 1200
A96: 1359 | B96: 252 | C96: 4 | D96: 160 | E96: 2 | F96: 0 | G96: =SUM($D$2:D96)/SUM($E$2:E96) -> 108.0851064 | H96: =SUM($E$2:E96)/SUM($C$2:C96) -> 0.3700787402 | I96: =SUM($F$2:F96)/SUM($C$2:C96) -> 0.05118110236 | K96: 690 | L96: 1200
A97: 1360 | B97: 256 | C97: 4 | D97: 160 | E97: 4 | F97: 1 | G97: =SUM($D$2:D97)/SUM($E$2:E97) -> 105.3061224 | H97: =SUM($E$2:E97)/SUM($C$2:C97) -> 0.3798449612 | I97: =SUM($F$2:F97)/SUM($C$2:C97) -> 0.05426356589 | K97: 690 | L97: 1200
A98: 1361 | B98: 259 | C98: 4 | D98: 160 | E98: 1 | F98: 0 | G98: =SUM($D$2:D98)/SUM($E$2:E98) -> 105.8585859 | H98: =SUM($E$2:E98)/SUM($C$2:C98) -> 0.3778625954 | I98: =SUM($F$2:F98)/SUM($C$2:C98) -> 0.0534351145 | K98: 690 | L98: 1200
A99: 1362 | B99: 263 | C99: 4 | D99: 160 | E99: 2 | F99: 0 | G99: =SUM($D$2:D99)/SUM($E$2:E99) -> 105.3465347 | H99: =SUM($E$2:E99)/SUM($C$2:C99) -> 0.3796992481 | I99: =SUM($F$2:F99)/SUM($C$2:C99) -> 0.05263157895 | K99: 690 | L99: 1200
A100: 1363 | B100: 267 | C100: 4 | D100: 160 | E100: 1 | F100: 0 | G100: =SUM($D$2:D100)/SUM($E$2:E100) -> 105.8823529 | H100: =SUM($E$2:E100)/SUM($C$2:C100) -> 0.3777777778 | I100: =SUM($F$2:F100)/SUM($C$2:C100) -> 0.05185185185 | K100: 690 | L100: 1200
A101: 1364 | B101: 271 | C101: 4 | D101: 160 | E101: 0 | F101: 0 | G101: =SUM($D$2:D101)/SUM($E$2:E101) -> 107.4509804 | H101: =SUM($E$2:E101)/SUM($C$2:C101) -> 0.3722627737 | I101: =SUM($F$2:F101)/SUM($C$2:C101) -> 0.05109489051 | K101: 690 | L101: 1200
A102: 1365 | B102: 275 | C102: 4 | D102: 160 | E102: 0 | F102: 0 | G102: =SUM($D$2:D102)/SUM($E$2:E102) -> 109.0196078 | H102: =SUM($E$2:E102)/SUM($C$2:C102) -> 0.3669064748 | I102: =SUM($F$2:F102)/SUM($C$2:C102) -> 0.05035971223 | K102: 690 | L102: 1200
A103: 1366 | B103: 279 | C103: 4 | D103: 160 | E103: 5 | F103: 2 | G103: =SUM($D$2:D103)/SUM($E$2:E103) -> 105.4205607 | H103: =SUM($E$2:E103)/SUM($C$2:C103) -> 0.3794326241 | I103: =SUM($F$2:F103)/SUM($C$2:C103) -> 0.05673758865 | K103: 690 | L103: 1200
A104: 1367 | B104: 283 | C104: 4 | D104: 160 | E104: 0 | F104: 0 | G104: =SUM($D$2:D104)/SUM($E$2:E104) -> 106.9158879 | H104: =SUM($E$2:E104)/SUM($C$2:C104) -> 0.3741258741 | I104: =SUM($F$2:F104)/SUM($C$2:C104) -> 0.05594405594 | K104: 690 | L104: 1200
A105: 1368 | B105: 287 | C105: 4 | D105: 160 | E105: 3 | F105: 1 | G105: =SUM($D$2:D105)/SUM($E$2:E105) -> 105.4545455 | H105: =SUM($E$2:E105)/SUM($C$2:C105) -> 0.3793103448 | I105: =SUM($F$2:F105)/SUM($C$2:C105) -> 0.05862068966 | K105: 690 | L105: 1200
A106: 1369 | B106: 291 | C106: 4 | D106: 160 | E106: 2 | F106: 0 | G106: =SUM($D$2:D106)/SUM($E$2:E106) -> 105 | H106: =SUM($E$2:E106)/SUM($C$2:C106) -> 0.380952381 | I106: =SUM($F$2:F106)/SUM($C$2:C106) -> 0.05782312925 | K106: 690 | L106: 1200
A107: 1370 | B107: 295 | C107: 4 | D107: 160 | E107: 1 | F107: 0 | G107: =SUM($D$2:D107)/SUM($E$2:E107) -> 105.4867257 | H107: =SUM($E$2:E107)/SUM($C$2:C107) -> 0.3791946309 | I107: =SUM($F$2:F107)/SUM($C$2:C107) -> 0.05704697987 | K107: 690 | L107: 1200
A108: 1371 | B108: 300 | C108: 5 | D108: 200 | E108: 2 | F108: 0 | G108: =SUM($D$2:D108)/SUM($E$2:E108) -> 105.3913043 | H108: =SUM($E$2:E108)/SUM($C$2:C108) -> 0.3795379538 | I108: =SUM($F$2:F108)/SUM($C$2:C108) -> 0.05610561056 | K108: 690 | L108: 1500
A109: 1372 | B109: 305 | C109: 5 | D109: 163 | E109: 2 | F109: 0 | G109: =SUM($D$2:D109)/SUM($E$2:E109) -> 104.982906 | H109: =SUM($E$2:E109)/SUM($C$2:C109) -> 0.3798701299 | I109: =SUM($F$2:F109)/SUM($C$2:C109) -> 0.05519480519 | K109: 690 | L109: 1222
A110: 1373 | B110: 309 | C110: 4 | D110: 160 | E110: 2 | F110: 0 | G110: =SUM($D$2:D110)/SUM($E$2:E110) -> 104.5630252 | H110: =SUM($E$2:E110)/SUM($C$2:C110) -> 0.3814102564 | I110: =SUM($F$2:F110)/SUM($C$2:C110) -> 0.05448717949 | K110: 690 | L110: 1200
A111: 1374 | B111: 312 | C111: 3 | D111: 120 | E111: 1 | F111: 0 | G111: =SUM($D$2:D111)/SUM($E$2:E111) -> 104.6916667 | H111: =SUM($E$2:E111)/SUM($C$2:C111) -> 0.380952381 | I111: =SUM($F$2:F111)/SUM($C$2:C111) -> 0.05396825397 | K111: 690 | L111: 900
A112: 1375 | B112: 313 | C112: 1 | D112: 40 | E112: 1 | F112: 0 | G112: =SUM($D$2:D112)/SUM($E$2:E112) -> 104.1570248 | H112: =SUM($E$2:E112)/SUM($C$2:C112) -> 0.3829113924 | I112: =SUM($F$2:F112)/SUM($C$2:C112) -> 0.05379746835 | K112: 690 | L112: 300
A113: 1376 | B113: 314 | C113: 1 | D113: 40 | E113: 1 | F113: 0 | G113: =SUM($D$2:D113)/SUM($E$2:E113) -> 103.6311475 | H113: =SUM($E$2:E113)/SUM($C$2:C113) -> 0.3848580442 | I113: =SUM($F$2:F113)/SUM($C$2:C113) -> 0.05362776025 | K113: 690 | L113: 300
A114: 1377 | B114: 315 | C114: 1 | D114: 40 | E114: 0 | F114: 0 | G114: =SUM($D$2:D114)/SUM($E$2:E114) -> 103.9590164 | H114: =SUM($E$2:E114)/SUM($C$2:C114) -> 0.3836477987 | I114: =SUM($F$2:F114)/SUM($C$2:C114) -> 0.0534591195 | K114: 690 | L114: 300
A115: 1378 | B115: 318 | C115: 3 | D115: 120 | E115: 2 | F115: 1 | G115: =SUM($D$2:D115)/SUM($E$2:E115) -> 103.25 | H115: =SUM($E$2:E115)/SUM($C$2:C115) -> 0.3862928349 | I115: =SUM($F$2:F115)/SUM($C$2:C115) -> 0.05607476636 | K115: 690 | L115: 900
A116: 1379 | B116: 320 | C116: 2 | D116: 80 | E116: 0 | F116: 0 | G116: =SUM($D$2:D116)/SUM($E$2:E116) -> 103.8951613 | H116: =SUM($E$2:E116)/SUM($C$2:C116) -> 0.3839009288 | I116: =SUM($F$2:F116)/SUM($C$2:C116) -> 0.05572755418 | K116: 690 | L116: 600
A117: 1380 | B117: 323 | C117: 3 | D117: 120 | E117: 2 | F117: 1 | G117: =SUM($D$2:D117)/SUM($E$2:E117) -> 103.1984127 | H117: =SUM($E$2:E117)/SUM($C$2:C117) -> 0.3865030675 | I117: =SUM($F$2:F117)/SUM($C$2:C117) -> 0.05828220859 | K117: 690 | L117: 900
A118: 1381 | B118: 325 | C118: 2 | D118: 80 | E118: 1 | F118: 0 | G118: =SUM($D$2:D118)/SUM($E$2:E118) -> 103.015748 | H118: =SUM($E$2:E118)/SUM($C$2:C118) -> 0.387195122 | I118: =SUM($F$2:F118)/SUM($C$2:C118) -> 0.05792682927 | K118: 690 | L118: 600
A119: 1382 | B119: 327 | C119: 2 | D119: 80 | E119: 1 | F119: 0 | G119: =SUM($D$2:D119)/SUM($E$2:E119) -> 102.8359375 | H119: =SUM($E$2:E119)/SUM($C$2:C119) -> 0.3878787879 | I119: =SUM($F$2:F119)/SUM($C$2:C119) -> 0.05757575758 | K119: 690 | L119: 600
A120: 1383 | B120: 329 | C120: 2 | D120: 80 | E120: 2 | F120: 1 | G120: =SUM($D$2:D120)/SUM($E$2:E120) -> 101.8692308 | H120: =SUM($E$2:E120)/SUM($C$2:C120) -> 0.3915662651 | I120: =SUM($F$2:F120)/SUM($C$2:C120) -> 0.06024096386 | K120: 690 | L120: 600
A121: 1384 | B121: 331 | C121: 2 | D121: 80 | E121: 2 | F121: 0 | G121: =SUM($D$2:D121)/SUM($E$2:E121) -> 100.9318182 | H121: =SUM($E$2:E121)/SUM($C$2:C121) -> 0.3952095808 | I121: =SUM($F$2:F121)/SUM($C$2:C121) -> 0.05988023952 | K121: 690 | L121: 600
A122: 1385 | B122: 333 | C122: 2 | D122: 80 | E122: 1 | F122: 0 | G122: =SUM($D$2:D122)/SUM($E$2:E122) -> 100.7744361 | H122: =SUM($E$2:E122)/SUM($C$2:C122) -> 0.3958333333 | I122: =SUM($F$2:F122)/SUM($C$2:C122) -> 0.05952380952 | K122: 690 | L122: 600
A123: 1386 | B123: 335 | C123: 2 | D123: 80 | E123: 2 | F123: 0 | G123: =SUM($D$2:D123)/SUM($E$2:E123) -> 99.87407407 | H123: =SUM($E$2:E123)/SUM($C$2:C123) -> 0.399408284 | I123: =SUM($F$2:F123)/SUM($C$2:C123) -> 0.05917159763 | K123: 690 | L123: 600
A124: 1387 | B124: 337 | C124: 2 | D124: 80 | E124: 0 | F124: 0 | G124: =SUM($D$2:D124)/SUM($E$2:E124) -> 100.4666667 | H124: =SUM($E$2:E124)/SUM($C$2:C124) -> 0.3970588235 | I124: =SUM($F$2:F124)/SUM($C$2:C124) -> 0.05882352941 | K124: 690 | L124: 600
A125: 1388 | B125: 339 | C125: 2 | D125: 80 | E125: 0 | F125: 0 | G125: =SUM($D$2:D125)/SUM($E$2:E125) -> 101.0592593 | H125: =SUM($E$2:E125)/SUM($C$2:C125) -> 0.3947368421 | I125: =SUM($F$2:F125)/SUM($C$2:C125) -> 0.05847953216 | K125: 690 | L125: 600
A126: 1389 | B126: 341 | C126: 2 | D126: 80 | E126: 1 | F126: 0 | G126: =SUM($D$2:D126)/SUM($E$2:E126) -> 100.9044118 | H126: =SUM($E$2:E126)/SUM($C$2:C126) -> 0.3953488372 | I126: =SUM($F$2:F126)/SUM($C$2:C126) -> 0.05813953488 | K126: 690 | L126: 600
A127: 1390 | B127: 343 | C127: 2 | D127: 80 | E127: 3 | F127: 1 | G127: =SUM($D$2:D127)/SUM($E$2:E127) -> 99.30215827 | H127: =SUM($E$2:E127)/SUM($C$2:C127) -> 0.401734104 | I127: =SUM($F$2:F127)/SUM($C$2:C127) -> 0.06069364162 | K127: 690 | L127: 600
A128: 1391 | B128: 345 | C128: 2 | D128: 80 | E128: 2 | F128: 0 | G128: =SUM($D$2:D128)/SUM($E$2:E128) -> 98.46099291 | H128: =SUM($E$2:E128)/SUM($C$2:C128) -> 0.4051724138 | I128: =SUM($F$2:F128)/SUM($C$2:C128) -> 0.06034482759 | K128: 690 | L128: 600
A129: 1392 | B129: 347 | C129: 2 | D129: 80 | E129: 1 | F129: 0 | G129: =SUM($D$2:D129)/SUM($E$2:E129) -> 98.33098592 | H129: =SUM($E$2:E129)/SUM($C$2:C129) -> 0.4057142857 | I129: =SUM($F$2:F129)/SUM($C$2:C129) -> 0.06 | K129: 690 | L129: 600
A130: 1393 | B130: 349 | C130: 2 | D130: 80 | E130: 0 | F130: 0 | G130: =SUM($D$2:D130)/SUM($E$2:E130) -> 98.8943662 | H130: =SUM($E$2:E130)/SUM($C$2:C130) -> 0.4034090909 | I130: =SUM($F$2:F130)/SUM($C$2:C130) -> 0.05965909091 | K130: 690 | L130: 600
A131: 1394 | B131: 350 | C131: 1 | D131: 40 | E131: 1 | F131: 0 | G131: =SUM($D$2:D131)/SUM($E$2:E131) -> 98.48251748 | H131: =SUM($E$2:E131)/SUM($C$2:C131) -> 0.4050991501 | I131: =SUM($F$2:F131)/SUM($C$2:C131) -> 0.05949008499 | K131: 690 | L131: =ROUNDDOWN(D131*(1+0.3+IF(K131<620,K131/100,6.2)),0) -> 300
A132: 1395 | B132: 351 | C132: 2 | D132: 80 | E132: 0 | F132: 0 | G132: =SUM($D$2:D132)/SUM($E$2:E132) -> 99.04195804 | H132: =SUM($E$2:E132)/SUM($C$2:C132) -> 0.4028169014 | I132: =SUM($F$2:F132)/SUM($C$2:C132) -> 0.05915492958 | K132: 690 | L132: 600
A133: 1396 | B133: 354 | C133: 3 | D133: 120 | E133: 0 | F133: 0 | G133: =SUM($D$2:D133)/SUM($E$2:E133) -> 99.88111888 | H133: =SUM($E$2:E133)/SUM($C$2:C133) -> 0.3994413408 | I133: =SUM($F$2:F133)/SUM($C$2:C133) -> 0.05865921788 | K133: 690 | L133: 900
A134: 1397 | B134: 357 | C134: 3 | D134: 120 | E134: 1 | F134: 0 | G134: =SUM($D$2:D134)/SUM($E$2:E134) -> 100.0208333 | H134: =SUM($E$2:E134)/SUM($C$2:C134) -> 0.3988919668 | I134: =SUM($F$2:F134)/SUM($C$2:C134) -> 0.05817174515 | K134: 690 | L134: 900
A135: 1398 | B135: 359 | C135: 2 | D135: 80 | E135: 1 | F135: 0 | G135: =SUM($D$2:D135)/SUM($E$2:E135) -> 99.88275862 | H135: =SUM($E$2:E135)/SUM($C$2:C135) -> 0.3994490358 | I135: =SUM($F$2:F135)/SUM($C$2:C135) -> 0.05785123967 | K135: 690 | L135: 600
A136: 1399 | B136: 361 | C136: 2 | D136: 80 | E136: 0 | F136: 0 | G136: =SUM($D$2:D136)/SUM($E$2:E136) -> 100.4344828 | H136: =SUM($E$2:E136)/SUM($C$2:C136) -> 0.397260274 | I136: =SUM($F$2:F136)/SUM($C$2:C136) -> 0.05753424658 | K136: 690 | L136: 600
A137: 1400 | B137: 364 | C137: 3 | D137: 120 | E137: 0 | F137: 0 | G137: =SUM($D$2:D137)/SUM($E$2:E137) -> 101.262069 | H137: =SUM($E$2:E137)/SUM($C$2:C137) -> 0.3940217391 | I137: =SUM($F$2:F137)/SUM($C$2:C137) -> 0.05706521739 | K137: 690 | L137: 900
A138: 1401 | B138: 365 | C138: 1 | D138: 40 | E138: 1 | F138: 0 | G138: =SUM($D$2:D138)/SUM($E$2:E138) -> 100.8424658 | H138: =SUM($E$2:E138)/SUM($C$2:C138) -> 0.3956639566 | I138: =SUM($F$2:F138)/SUM($C$2:C138) -> 0.05691056911 | K138: 690 | L138: 300
A139: 1402 | B139: 365 | C139: 1 | D139: 40 | E139: 0 | F139: 0 | G139: =SUM($D$2:D139)/SUM($E$2:E139) -> 101.1164384 | H139: =SUM($E$2:E139)/SUM($C$2:C139) -> 0.3945945946 | I139: =SUM($F$2:F139)/SUM($C$2:C139) -> 0.05675675676 | K139: 690 | L139: 300
A140: 1403 | B140: 367 | C140: 2 | D140: 80 | E140: 0 | F140: 0 | G140: =SUM($D$2:D140)/SUM($E$2:E140) -> 101.6643836 | H140: =SUM($E$2:E140)/SUM($C$2:C140) -> 0.3924731183 | I140: =SUM($F$2:F140)/SUM($C$2:C140) -> 0.0564516129 | K140: 690 | L140: 600
A141: 1404 | B141: 369 | C141: 2 | D141: 80 | E141: 0 | F141: 0 | G141: =SUM($D$2:D141)/SUM($E$2:E141) -> 102.2123288 | H141: =SUM($E$2:E141)/SUM($C$2:C141) -> 0.3903743316 | I141: =SUM($F$2:F141)/SUM($C$2:C141) -> 0.05614973262 | K141: 690 | L141: 600
A142: 1405 | B142: 372 | C142: 3 | D142: 120 | E142: 0 | F142: 0 | G142: =SUM($D$2:D142)/SUM($E$2:E142) -> 103.0342466 | H142: =SUM($E$2:E142)/SUM($C$2:C142) -> 0.3872679045 | I142: =SUM($F$2:F142)/SUM($C$2:C142) -> 0.05570291777 | K142: 690 | L142: 900
A143: 1406 | B143: 375 | C143: 3 | D143: 120 | E143: 2 | F143: 0 | G143: =SUM($D$2:D143)/SUM($E$2:E143) -> 102.4527027 | H143: =SUM($E$2:E143)/SUM($C$2:C143) -> 0.3894736842 | I143: =SUM($F$2:F143)/SUM($C$2:C143) -> 0.05526315789 | K143: 690 | L143: 900
A144: 1407 | B144: 378 | C144: 3 | D144: 120 | E144: 2 | F144: 0 | G144: =SUM($D$2:D144)/SUM($E$2:E144) -> 101.8866667 | H144: =SUM($E$2:E144)/SUM($C$2:C144) -> 0.3916449086 | I144: =SUM($F$2:F144)/SUM($C$2:C144) -> 0.05483028721 | K144: 690 | L144: 900
A145: 1408 | B145: 381 | C145: 3 | D145: 120 | E145: 1 | F145: 0 | G145: =SUM($D$2:D145)/SUM($E$2:E145) -> 102.0066225 | H145: =SUM($E$2:E145)/SUM($C$2:C145) -> 0.3911917098 | I145: =SUM($F$2:F145)/SUM($C$2:C145) -> 0.05440414508 | K145: 690 | L145: 900
A146: 1409 | B146: 384 | C146: 3 | D146: 120 | E146: 1 | F146: 0 | G146: =SUM($D$2:D146)/SUM($E$2:E146) -> 102.125 | H146: =SUM($E$2:E146)/SUM($C$2:C146) -> 0.3907455013 | I146: =SUM($F$2:F146)/SUM($C$2:C146) -> 0.05398457584 | K146: 690 | L146: 900
A147: 1410 | B147: 387 | C147: 3 | D147: 120 | E147: 0 | F147: 0 | G147: =SUM($D$2:D147)/SUM($E$2:E147) -> 102.9144737 | H147: =SUM($E$2:E147)/SUM($C$2:C147) -> 0.387755102 | I147: =SUM($F$2:F147)/SUM($C$2:C147) -> 0.05357142857 | K147: 690 | L147: 900
A148: 1411 | B148: 390 | C148: 3 | D148: 120 | E148: 0 | F148: 0 | G148: =SUM($D$2:D148)/SUM($E$2:E148) -> 103.7039474 | H148: =SUM($E$2:E148)/SUM($C$2:C148) -> 0.3848101266 | I148: =SUM($F$2:F148)/SUM($C$2:C148) -> 0.05316455696 | K148: 690 | L148: 900
A149: 1412 | B149: 393 | C149: 3 | D149: 120 | E149: 0 | F149: 0 | G149: =SUM($D$2:D149)/SUM($E$2:E149) -> 104.4934211 | H149: =SUM($E$2:E149)/SUM($C$2:C149) -> 0.3819095477 | I149: =SUM($F$2:F149)/SUM($C$2:C149) -> 0.0527638191 | K149: 690 | L149: 900
A150: 1413 | B150: 396 | C150: 3 | D150: 120 | E150: 2 | F150: 0 | G150: =SUM($D$2:D150)/SUM($E$2:E150) -> 103.9155844 | H150: =SUM($E$2:E150)/SUM($C$2:C150) -> 0.3840399002 | I150: =SUM($F$2:F150)/SUM($C$2:C150) -> 0.05236907731 | K150: 690 | L150: 900
A151: 1414 | B151: 399 | C151: 3 | D151: 120 | E151: 4 | F151: 1 | G151: =SUM($D$2:D151)/SUM($E$2:E151) -> 102.0443038 | H151: =SUM($E$2:E151)/SUM($C$2:C151) -> 0.3910891089 | I151: =SUM($F$2:F151)/SUM($C$2:C151) -> 0.05445544554 | K151: 690 | L151: 900
A152: 1415 | B152: 403 | C152: 4 | D152: 130 | E152: 2 | F152: 0 | G152: =SUM($D$2:D152)/SUM($E$2:E152) -> 101.58125 | H152: =SUM($E$2:E152)/SUM($C$2:C152) -> 0.3921568627 | I152: =SUM($F$2:F152)/SUM($C$2:C152) -> 0.05392156863 | K152: 690 | L152: 975

Sheet Sheet2

Sheet Sheet3
